[Event "*** Titled Tuesday Blitz"]
[Site "Chess.com"]
[Date "2020.04.14"]
[Round "6"]
[White "VolodymyrMolyboha"]
[Black "Hangar-18"]
[Result "1-0"]
[WhiteElo "2429"]
[BlackElo "2213"]
[TimeControl "180+1"]
[EndTime "11:06:02 PDT"]
[Termination "VolodymyrMolyboha won on time"]

1. e4 {[%clk 0:02:59.1]} 1... c5 {[%clk 0:02:52.7]} 2. Nf3 {[%clk 0:02:58.8]}
2... e6 {[%clk 0:02:52.6]} 3. c3 {[%clk 0:02:58.9]} 3... d5 {[%clk 0:02:52.1]}
4. e5 {[%clk 0:02:58.6]} 4... d4 {[%clk 0:02:51.1]} 5. Bd3 {[%clk 0:02:58]} 5...
Nc6 {[%clk 0:02:33.8]} 6. Be4 {[%clk 0:02:57.3]} 6... Bd7 {[%clk 0:02:18.5]} 7.
d3 {[%clk 0:02:55.2]} 7... Nge7 {[%clk 0:02:16.4]} 8. Bf4 {[%clk 0:02:54.5]}
8... Ng6 {[%clk 0:02:05.9]} 9. Bg3 {[%clk 0:02:54]} 9... Be7 {[%clk 0:02:05.8]}
10. O-O {[%clk 0:02:51.5]} 10... O-O {[%clk 0:01:54.9]} 11. c4 {[%clk
0:02:49.5]} 11... f5 {[%clk 0:01:25.4]} 12. exf6 {[%clk 0:02:46.5]} 12... Rxf6
{[%clk 0:01:25.8]} 13. Nbd2 {[%clk 0:02:37]} 13... Qb6 {[%clk 0:01:16.6]} 14. b3
{[%clk 0:02:31.2]} 14... Raf8 {[%clk 0:01:14.8]} 15. Re1 {[%clk 0:02:08.5]}
15... Bc8 {[%clk 0:01:14.3]} 16. Re2 {[%clk 0:02:06.8]} 16... Nf4 {[%clk
0:01:10]} 17. Bxf4 {[%clk 0:02:05.7]} 17... Rxf4 {[%clk 0:01:10.9]} 18. Qc2
{[%clk 0:01:59.3]} 18... Qc7 {[%clk 0:01:07]} 19. Rae1 {[%clk 0:01:55]} 19...
Bd6 {[%clk 0:01:01.1]} 20. a3 {[%clk 0:01:52.8]} 20... a5 {[%clk 0:00:57.5]} 21.
Nf1 {[%clk 0:01:50.2]} 21... g6 {[%clk 0:00:56.5]} 22. Qc1 {[%clk 0:01:39.6]}
22... Qg7 {[%clk 0:00:55.2]} 23. Ng3 {[%clk 0:01:32.6]} 23... Ne7 {[%clk
0:00:43.4]} 24. Nd2 {[%clk 0:01:04.7]} 24... h5 {[%clk 0:00:40.1]} 25. Bf3
{[%clk 0:01:02]} 25... b6 {[%clk 0:00:36.5]} 26. Nge4 {[%clk 0:00:59.1]} 26...
Bc7 {[%clk 0:00:36.3]} 27. Ng5 {[%clk 0:00:58]} 27... e5 {[%clk 0:00:35.7]} 28.
g3 {[%clk 0:00:48.2]} 28... R4f5 {[%clk 0:00:32.9]} 29. h4 {[%clk 0:00:44.5]}
29... Kh8 {[%clk 0:00:32.7]} 30. Bg2 {[%clk 0:00:43.8]} 30... Ng8 {[%clk
0:00:28.9]} 31. Nde4 {[%clk 0:00:43.2]} 31... Re8 {[%clk 0:00:23.8]} 32. Bh3
{[%clk 0:00:41.7]} 32... Nh6 {[%clk 0:00:22.7]} 33. Qd2 {[%clk 0:00:35.6]} 33...
Ref8 {[%clk 0:00:17.7]} 34. Rf1 {[%clk 0:00:34.2]} 34... Bb7 {[%clk 0:00:15.8]}
35. Bg2 {[%clk 0:00:33.6]} 35... Bc8 {[%clk 0:00:15.5]} 36. Qe1 {[%clk
0:00:31.9]} 36... Ng4 {[%clk 0:00:15.4]} 37. Bh3 {[%clk 0:00:28.5]} 37... Nh6
{[%clk 0:00:14.3]} 38. Nd2 {[%clk 0:00:23.9]} 38... Rxg5 {[%clk 0:00:12]} 39.
hxg5 {[%clk 0:00:22.4]} 39... Bxh3 {[%clk 0:00:12.4]} 40. gxh6 {[%clk
0:00:22.8]} 40... Qxh6 {[%clk 0:00:13.3]} 41. Ne4 {[%clk 0:00:19.3]} 41... g5
{[%clk 0:00:10.8]} 42. f3 {[%clk 0:00:18.5]} 42... Bxf1 {[%clk 0:00:10.2]} 43.
Qxf1 {[%clk 0:00:17.7]} 43... g4 {[%clk 0:00:10.7]} 44. Rf2 {[%clk 0:00:16.5]}
44... Qe3 {[%clk 0:00:10.8]} 45. Kg2 {[%clk 0:00:16.8]} 45... gxf3+ {[%clk
0:00:05]} 46. Rxf3 {[%clk 0:00:16.9]} 46... Rxf3 {[%clk 0:00:04.1]} 47. Qxf3
{[%clk 0:00:17.2]} 47... Qxf3+ {[%clk 0:00:04.6]} 48. Kxf3 {[%clk 0:00:17.7]}
48... Kg7 {[%clk 0:00:05.5]} 49. g4 {[%clk 0:00:17.8]} 49... hxg4+ {[%clk
0:00:03.2]} 50. Kxg4 {[%clk 0:00:18.1]} 50... Kg6 {[%clk 0:00:04.1]} 51. Nf2
{[%clk 0:00:17.6]} 51... Bd8 {[%clk 0:00:04.7]} 52. Kf3 {[%clk 0:00:17.7]} 52...
Bg5 {[%clk 0:00:05.1]} 53. Ke4 {[%clk 0:00:16.9]} 53... Kf6 {[%clk 0:00:04.1]}
54. Ng4+ {[%clk 0:00:16.7]} 54... Ke6 {[%clk 0:00:04.7]} 55. Nxe5 {[%clk
0:00:17]} 55... Bc1 {[%clk 0:00:05.3]} 56. a4 {[%clk 0:00:17]} 56... Bg5 {[%clk
0:00:05.7]} 57. Nf3 {[%clk 0:00:17]} 57... Bf6 {[%clk 0:00:06]} 58. Nh2 {[%clk
0:00:16.6]} 58... Bg7 {[%clk 0:00:06.1]} 59. Ng4 {[%clk 0:00:16.8]} 59... Bh8
{[%clk 0:00:06.4]} 60. Nh6 {[%clk 0:00:16.3]} 60... Bg7 {[%clk 0:00:06.7]} 61.
Nf5 {[%clk 0:00:16.4]} 61... Bh8 {[%clk 0:00:07]} 62. Kf4 {[%clk 0:00:16.5]}
62... Be5+ {[%clk 0:00:07.2]} 63. Kg4 {[%clk 0:00:16.9]} 63... Bh8 {[%clk
0:00:08.1]} 64. Ng3 {[%clk 0:00:17]} 64... Be5 {[%clk 0:00:08.5]} 65. Ne4 {[%clk
0:00:16.9]} 65... Bg7 {[%clk 0:00:09.1]} 66. Kg5 {[%clk 0:00:17.2]} 66... Bh8
{[%clk 0:00:08.9]} 67. Kg6 {[%clk 0:00:16.6]} 67... Ke5 {[%clk 0:00:09.3]} 68.
Kg5 {[%clk 0:00:16.6]} 68... Bg7 {[%clk 0:00:09.2]} 69. Nf2 {[%clk 0:00:16.5]}
69... Bf6+ {[%clk 0:00:09.3]} 70. Kg4 {[%clk 0:00:16.8]} 70... Bg7 {[%clk
0:00:09.6]} 71. Nh3 {[%clk 0:00:16.6]} 71... Bh6 {[%clk 0:00:10.1]} 72. Ng1
{[%clk 0:00:16.2]} 72... Bd2 {[%clk 0:00:09.1]} 73. Nf3+ {[%clk 0:00:16.5]}
73... Kf6 {[%clk 0:00:10]} 74. Nxd2 {[%clk 0:00:16.6]} 74... Ke5 {[%clk
0:00:10.1]} 75. Nf3+ {[%clk 0:00:16.4]} 75... Kf6 {[%clk 0:00:10.5]} 76. Kf4
{[%clk 0:00:16.7]} 76... Ke6 {[%clk 0:00:11]} 77. Ke4 {[%clk 0:00:16.8]} 77...
Kf6 {[%clk 0:00:11.2]} 78. Nxd4 {[%clk 0:00:16.7]} 78... cxd4 {[%clk 0:00:11.3]}
79. Kxd4 {[%clk 0:00:17]} 79... Ke6 {[%clk 0:00:12.2]} 80. Ke4 {[%clk
0:00:16.6]} 80... Kd6 {[%clk 0:00:12.7]} 81. d4 {[%clk 0:00:16.9]} 81... Kc6
{[%clk 0:00:13.6]} 82. Ke5 {[%clk 0:00:16.7]} 1-0

[Event "*** Titled Tuesday Blitz"]
[Site "Chess.com"]
[Date "2020.04.14"]
[Round "6"]
[White "arjwezhrtdrz"]
[Black "Vusatiuk_Vladimir"]
[Result "0-1"]
[WhiteElo "2198"]
[BlackElo "2364"]
[TimeControl "180+1"]
[EndTime "11:06:03 PDT"]
[Termination "Vusatiuk_Vladimir won by resignation"]

1. e4 {[%clk 0:02:55.5]} 1... c5 {[%clk 0:03:00.1]} 2. c3 {[%clk 0:02:55.8]}
2... Nf6 {[%clk 0:02:59]} 3. e5 {[%clk 0:02:56]} 3... Nd5 {[%clk 0:02:59.6]} 4.
Nf3 {[%clk 0:02:56.9]} 4... d6 {[%clk 0:02:58.8]} 5. d4 {[%clk 0:02:57.1]} 5...
cxd4 {[%clk 0:02:58.8]} 6. cxd4 {[%clk 0:02:58]} 6... e6 {[%clk 0:02:58.8]} 7.
Bc4 {[%clk 0:02:57.9]} 7... Nc6 {[%clk 0:02:58.9]} 8. O-O {[%clk 0:02:57.8]}
8... Be7 {[%clk 0:02:57.4]} 9. Qe2 {[%clk 0:02:57.9]} 9... O-O {[%clk
0:02:56.6]} 10. Rd1 {[%clk 0:02:58]} 10... Qc7 {[%clk 0:02:55.8]} 11. h3 {[%clk
0:02:54.2]} 11... Bd7 {[%clk 0:02:26.7]} 12. Bxd5 {[%clk 0:02:52.8]} 12... exd5
{[%clk 0:02:26.1]} 13. Nc3 {[%clk 0:02:51.7]} 13... Be6 {[%clk 0:02:25.2]} 14.
Bf4 {[%clk 0:02:51.8]} 14... a6 {[%clk 0:02:24.7]} 15. exd6 {[%clk 0:02:50.5]}
15... Bxd6 {[%clk 0:02:25.6]} 16. Bxd6 {[%clk 0:02:50.8]} 16... Qxd6 {[%clk
0:02:26.5]} 17. Ne5 {[%clk 0:02:51.2]} 17... Rfe8 {[%clk 0:02:23.3]} 18. Nxc6
{[%clk 0:02:51.1]} 18... bxc6 {[%clk 0:02:22.5]} 19. Qd2 {[%clk 0:02:39.4]}
19... Qb4 {[%clk 0:02:11.9]} 20. b3 {[%clk 0:02:32.8]} 20... Bf5 {[%clk
0:02:01.3]} 21. Na4 {[%clk 0:02:31.9]} 21... Qb7 {[%clk 0:01:59.9]} 22. Nc5
{[%clk 0:02:32]} 22... Qe7 {[%clk 0:01:59.7]} 23. Re1 {[%clk 0:02:31.6]} 23...
Qf8 {[%clk 0:01:58.5]} 24. Qf4 {[%clk 0:02:31.3]} 24... Be6 {[%clk 0:01:52.7]}
25. Re3 {[%clk 0:02:22.7]} 25... Qe7 {[%clk 0:01:46.3]} 26. Rae1 {[%clk
0:02:20.8]} 26... a5 {[%clk 0:01:29.5]} 27. Qe5 {[%clk 0:01:42.8]} 27... Qd8
{[%clk 0:01:15.9]} 28. Qf4 {[%clk 0:01:35.4]} 28... Qe7 {[%clk 0:01:14.9]} 29.
Re5 {[%clk 0:01:29.2]} 29... Qd6 {[%clk 0:00:44]} 30. Rxe6 {[%clk 0:01:01.2]}
30... Rxe6 {[%clk 0:00:41.1]} 31. Nxe6 {[%clk 0:01:00.8]} 31... Qb4 {[%clk
0:00:41.3]} 32. Qe3 {[%clk 0:00:36.5]} 32... Re8 {[%clk 0:00:36.4]} 33. Qc1
{[%clk 0:00:28.4]} 33... fxe6 {[%clk 0:00:33.4]} 34. Qe3 {[%clk 0:00:21.3]}
34... e5 {[%clk 0:00:30.4]} 35. dxe5 {[%clk 0:00:20.2]} 35... d4 {[%clk
0:00:31.3]} 36. Qe4 {[%clk 0:00:19.2]} 36... c5 {[%clk 0:00:21.3]} 37. e6 {[%clk
0:00:14.2]} 37... Qb6 {[%clk 0:00:11.1]} 38. e7 {[%clk 0:00:12]} 38... Qd6
{[%clk 0:00:10]} 39. f4 {[%clk 0:00:08.4]} 39... d3 {[%clk 0:00:04.4]} 40. Qe6+
{[%clk 0:00:08.1]} 40... Qxe6 {[%clk 0:00:04.1]} 41. Rxe6 {[%clk 0:00:09]} 41...
Kf7 {[%clk 0:00:03.9]} 42. Rd6 {[%clk 0:00:09.3]} 42... Rxe7 {[%clk 0:00:04.4]}
43. Rxd3 {[%clk 0:00:10]} 43... Re2 {[%clk 0:00:05]} 44. Rd7+ {[%clk 0:00:07.6]}
44... Kf6 {[%clk 0:00:04.1]} 45. Rc7 {[%clk 0:00:08]} 45... Rxa2 {[%clk
0:00:03.3]} 46. Rxc5 {[%clk 0:00:08.3]} 46... Ra3 {[%clk 0:00:03.8]} 47. Rb5
{[%clk 0:00:08.3]} 47... Kg6 {[%clk 0:00:02.9]} 48. Kh2 {[%clk 0:00:08.5]} 48...
Kf6 {[%clk 0:00:03.8]} 49. h4 {[%clk 0:00:08.4]} 49... Kg6 {[%clk 0:00:03.7]}
50. Kh3 {[%clk 0:00:08.7]} 50... a4 {[%clk 0:00:03.4]} 51. Rb6+ {[%clk
0:00:08.5]} 51... Kf7 {[%clk 0:00:03.4]} 52. Rb7+ {[%clk 0:00:08.7]} 52... Kf6
{[%clk 0:00:03.9]} 53. Rb6+ {[%clk 0:00:08.8]} 53... Kf5 {[%clk 0:00:04.5]} 54.
g4+ {[%clk 0:00:08.4]} 54... Kxf4 {[%clk 0:00:02.8]} 55. Rb4+ {[%clk 0:00:08.7]}
55... Kf3 {[%clk 0:00:03]} 56. Rxa4 {[%clk 0:00:09]} 56... Rxb3 {[%clk
0:00:02.8]} 57. g5 {[%clk 0:00:08.7]} 57... Rb1 {[%clk 0:00:01.9]} 58. Kh2
{[%clk 0:00:08.3]} 58... Rb2+ {[%clk 0:00:01.8]} 59. Kh3 {[%clk 0:00:08.5]}
59... Rb1 {[%clk 0:00:02.7]} 60. Kh2 {[%clk 0:00:07.8]} 60... Rb2+ {[%clk
0:00:03.6]} 61. Kg1 {[%clk 0:00:08]} 61... Rb7 {[%clk 0:00:04.5]} 62. Ra3+
{[%clk 0:00:07.8]} 62... Kg4 {[%clk 0:00:04.8]} 63. Kg2 {[%clk 0:00:07.2]} 63...
Rb2+ {[%clk 0:00:04]} 64. Kf1 {[%clk 0:00:07]} 64... Kxh4 {[%clk 0:00:04.3]} 65.
Ra5 {[%clk 0:00:07.4]} 65... Kh5 {[%clk 0:00:04]} 66. Ra7 {[%clk 0:00:07.3]}
66... Kxg5 {[%clk 0:00:02.8]} 67. Rxg7+ {[%clk 0:00:07.2]} 67... Kh6 {[%clk
0:00:03.7]} 68. Rg3 {[%clk 0:00:07.2]} 68... Kh5 {[%clk 0:00:03.9]} 69. Kg1
{[%clk 0:00:07.5]} 69... Kh4 {[%clk 0:00:04.1]} 70. Rd3 {[%clk 0:00:07.5]} 70...
h5 {[%clk 0:00:03.2]} 71. Rd4+ {[%clk 0:00:07.8]} 71... Kg3 {[%clk 0:00:02.8]}
72. Rd3+ {[%clk 0:00:08.2]} 72... Kf4 {[%clk 0:00:02.8]} 73. Rd4+ {[%clk
0:00:08.7]} 73... Ke3 {[%clk 0:00:02.7]} 74. Rh4 {[%clk 0:00:08.9]} 74... Rb5
{[%clk 0:00:02.1]} 75. Kg2 {[%clk 0:00:08.9]} 75... Rg5+ {[%clk 0:00:02.2]} 76.
Kh3 {[%clk 0:00:08.8]} 76... Kf3 {[%clk 0:00:02.6]} 77. Rb4 {[%clk 0:00:08.8]}
77... Rg3+ {[%clk 0:00:01.6]} 78. Kh4 {[%clk 0:00:09]} 78... Rg4+ {[%clk
0:00:02.1]} 79. Rxg4 {[%clk 0:00:08]} 79... hxg4 {[%clk 0:00:03]} 0-1

[Event "*** Titled Tuesday Blitz"]
[Site "Chess.com"]
[Date "2020.04.14"]
[Round "6"]
[White "GodDMuhammad"]
[Black "asimali1977"]
[Result "0-1"]
[WhiteElo "2232"]
[BlackElo "1992"]
[TimeControl "180+1"]
[EndTime "11:06:18 PDT"]
[Termination "asimali1977 won by checkmate"]

1. f4 {[%clk 0:02:37.7]} 1... g6 {[%clk 0:02:58.5]} 2. e4 {[%clk 0:02:37]} 2...
Bg7 {[%clk 0:02:57.9]} 3. d3 {[%clk 0:02:36]} 3... d5 {[%clk 0:02:57]} 4. e5
{[%clk 0:02:35.9]} 4... c5 {[%clk 0:02:55.7]} 5. Nf3 {[%clk 0:02:36.1]} 5... Nc6
{[%clk 0:02:54.5]} 6. g3 {[%clk 0:02:36.5]} 6... Bg4 {[%clk 0:02:54.1]} 7. Bg2
{[%clk 0:02:36.9]} 7... e6 {[%clk 0:02:54]} 8. c3 {[%clk 0:02:37.2]} 8... Nge7
{[%clk 0:02:52.2]} 9. O-O {[%clk 0:02:37.4]} 9... O-O {[%clk 0:02:50.5]} 10. Be3
{[%clk 0:02:36.2]} 10... b6 {[%clk 0:02:45.9]} 11. Nbd2 {[%clk 0:02:33.1]} 11...
Rc8 {[%clk 0:02:37.7]} 12. h3 {[%clk 0:02:31.7]} 12... Bxf3 {[%clk 0:02:36.1]}
13. Qxf3 {[%clk 0:02:32.6]} 13... Nf5 {[%clk 0:02:32.3]} 14. Bf2 {[%clk
0:02:32.9]} 14... Qe7 {[%clk 0:02:01.6]} 15. Rad1 {[%clk 0:02:26.1]} 15... d4
{[%clk 0:01:58.6]} 16. Ne4 {[%clk 0:02:24.3]} 16... Nxe5 {[%clk 0:01:49.2]} 17.
fxe5 {[%clk 0:02:22.1]} 17... Bxe5 {[%clk 0:01:48.4]} 18. g4 {[%clk 0:02:21.6]}
18... Nh4 {[%clk 0:01:43.5]} 19. Bxh4 {[%clk 0:02:21.5]} 19... Qxh4 {[%clk
0:01:42.6]} 20. Nf6+ {[%clk 0:02:22.2]} 20... Bxf6 {[%clk 0:01:30]} 21. Qxf6
{[%clk 0:02:23.1]} 21... Qxf6 {[%clk 0:01:25.9]} 22. Rxf6 {[%clk 0:02:24]} 22...
Kg7 {[%clk 0:01:24.6]} 23. g5 {[%clk 0:02:23]} 23... h6 {[%clk 0:01:21.8]} 24.
h4 {[%clk 0:02:23.2]} 24... hxg5 {[%clk 0:01:21.5]} 25. hxg5 {[%clk 0:02:24.1]}
25... Rc7 {[%clk 0:01:16]} 26. Rdf1 {[%clk 0:02:16]} 26... Rh8 {[%clk
0:01:13.9]} 27. Bf3 {[%clk 0:02:15.6]} 27... Rh4 {[%clk 0:01:09.9]} 28. Kg2
{[%clk 0:02:15]} 28... c4 {[%clk 0:01:01.8]} 29. dxc4 {[%clk 0:02:09.1]} 29...
dxc3 {[%clk 0:01:00.4]} 30. bxc3 {[%clk 0:02:07.1]} 30... Rhxc4 {[%clk
0:00:56.6]} 31. Rf2 {[%clk 0:01:59.9]} 31... Rxc3 {[%clk 0:00:55.6]} 32. Kg3
{[%clk 0:01:54]} 32... R3c5 {[%clk 0:00:53.7]} 33. Kg4 {[%clk 0:01:53.9]} 33...
Rc4+ {[%clk 0:00:46.8]} 34. Rf4 {[%clk 0:01:53.5]} 34... Rxf4+ {[%clk
0:00:45.6]} 35. Kxf4 {[%clk 0:01:54.4]} 35... Rc5 {[%clk 0:00:44.7]} 36. Be4
{[%clk 0:01:54]} 36... a5 {[%clk 0:00:44.2]} 37. Rd2 {[%clk 0:01:50.7]} 37... b5
{[%clk 0:00:33]} 38. Rd7 {[%clk 0:01:50.4]} 38... b4 {[%clk 0:00:33]} 39. Ra7
{[%clk 0:01:47.2]} 39... Kf8 {[%clk 0:00:30.6]} 40. Bd3 {[%clk 0:01:30.1]} 40...
Ke8 {[%clk 0:00:26.5]} 41. Rb7 {[%clk 0:01:24.2]} 41... Rd5 {[%clk 0:00:23.9]}
42. Be4 {[%clk 0:01:20.3]} 42... Rc5 {[%clk 0:00:23.7]} 43. Rb8+ {[%clk
0:01:15.7]} 43... Ke7 {[%clk 0:00:23.6]} 44. Rb7+ {[%clk 0:01:16.3]} 44... Kf8
{[%clk 0:00:23.5]} 45. Bd3 {[%clk 0:01:15.7]} 45... Rd5 {[%clk 0:00:23]} 46. Bb5
{[%clk 0:01:03.9]} 46... Kg7 {[%clk 0:00:21.1]} 47. Bd7 {[%clk 0:01:00.3]} 47...
Rf5+ {[%clk 0:00:20.1]} 48. Kg4 {[%clk 0:00:59.8]} 48... Kf8 {[%clk 0:00:20.3]}
49. Ba4 {[%clk 0:00:56.3]} 49... Rc5 {[%clk 0:00:20]} 50. Bb3 {[%clk 0:00:55.7]}
50... Re5 {[%clk 0:00:19.5]} 51. Kf4 {[%clk 0:00:55.5]} 51... Rc5 {[%clk
0:00:19.6]} 52. Rb8+ {[%clk 0:00:54.1]} 52... Kg7 {[%clk 0:00:19.2]} 53. Ra8
{[%clk 0:00:53]} 53... Kh7 {[%clk 0:00:17.9]} 54. Ra7 {[%clk 0:00:52.1]} 54...
Kg8 {[%clk 0:00:17.8]} 55. Ba4 {[%clk 0:00:46.6]} 55... Rf5+ {[%clk 0:00:17.3]}
56. Kg4 {[%clk 0:00:46.5]} 56... Rc5 {[%clk 0:00:17.3]} 57. Be8 {[%clk
0:00:46.5]} 57... Rf5 {[%clk 0:00:15.3]} 58. Rb7 {[%clk 0:00:41.7]} 58... Kf8
{[%clk 0:00:15.4]} 59. Bd7 {[%clk 0:00:41.6]} 59... Rd5 {[%clk 0:00:13.5]} 60.
Ba4 {[%clk 0:00:39.1]} 60... Rd4+ {[%clk 0:00:13.5]} 61. Kf3 {[%clk 0:00:38.7]}
61... Rd5 {[%clk 0:00:13.8]} 62. Kf4 {[%clk 0:00:38.8]} 62... Rd4+ {[%clk
0:00:14]} 63. Ke5 {[%clk 0:00:39]} 63... Rd5+ {[%clk 0:00:14.2]} 64. Kf4 {[%clk
0:00:38.9]} 64... Rd4+ {[%clk 0:00:14.4]} 65. Kf3 {[%clk 0:00:37.8]} 65... Rd3+
{[%clk 0:00:13.6]} 66. Ke4 {[%clk 0:00:37.9]} 66... Rd5 {[%clk 0:00:13.7]} 67.
Rb8+ {[%clk 0:00:37.9]} 67... Kg7 {[%clk 0:00:13.6]} 68. Be8 {[%clk 0:00:37.1]}
68... Rxg5 {[%clk 0:00:12.8]} 69. Rb7 {[%clk 0:00:38]} 69... Rf5 {[%clk
0:00:12.8]} 70. Bd7 {[%clk 0:00:38.2]} 70... Kf8 {[%clk 0:00:12.8]} 71. Ra7
{[%clk 0:00:36.9]} 71... g5 {[%clk 0:00:13]} 72. Bc6 {[%clk 0:00:32.7]} 72... g4
{[%clk 0:00:12.6]} 73. Ke3 {[%clk 0:00:32.2]} 73... g3 {[%clk 0:00:12.3]} 74.
Ra8+ {[%clk 0:00:32.3]} 74... Kg7 {[%clk 0:00:12.2]} 75. Bg2 {[%clk 0:00:30.6]}
75... Rf2 {[%clk 0:00:11.9]} 76. Be4 {[%clk 0:00:29.7]} 76... Rxa2 {[%clk
0:00:11.7]} 77. Rb8 {[%clk 0:00:26.3]} 77... g2 {[%clk 0:00:11.7]} 78. Bxg2
{[%clk 0:00:24.7]} 78... Rxg2 {[%clk 0:00:11.5]} 79. Rb5 {[%clk 0:00:25.6]}
79... Ra2 {[%clk 0:00:11.3]} 80. Rg5+ {[%clk 0:00:25.3]} 80... Kf6 {[%clk
0:00:11.1]} 81. Rg8 {[%clk 0:00:25.9]} 81... b3 {[%clk 0:00:10.9]} 82. Kd3
{[%clk 0:00:26.8]} 82... a4 {[%clk 0:00:11.2]} 83. Kc3 {[%clk 0:00:27.2]} 83...
Rc2+ {[%clk 0:00:11.5]} 84. Kd3 {[%clk 0:00:27.6]} 84... Rc5 {[%clk 0:00:11.1]}
85. Rg4 {[%clk 0:00:27.2]} 85... Rb5 {[%clk 0:00:11]} 86. Rf4+ {[%clk
0:00:25.9]} 86... Ke7 {[%clk 0:00:10.8]} 87. Rf1 {[%clk 0:00:26.8]} 87... b2
{[%clk 0:00:10.9]} 88. Kc2 {[%clk 0:00:26.4]} 88... a3 {[%clk 0:00:11.5]} 89.
Kb1 {[%clk 0:00:25.9]} 89... a2+ {[%clk 0:00:12.2]} 90. Kxa2 {[%clk 0:00:26.3]}
90... b1=Q+ {[%clk 0:00:11.7]} 91. Rxb1 {[%clk 0:00:26.3]} 91... Rxb1 {[%clk
0:00:12.3]} 92. Kxb1 {[%clk 0:00:27.2]} 92... Kf6 {[%clk 0:00:12.8]} 93. Kc2
{[%clk 0:00:28.1]} 93... Kf5 {[%clk 0:00:12.4]} 94. Kd3 {[%clk 0:00:29]} 94...
Kf4 {[%clk 0:00:13.3]} 95. Ke2 {[%clk 0:00:29.3]} 95... e5 {[%clk 0:00:14.2]}
96. Kf2 {[%clk 0:00:30.2]} 96... f5 {[%clk 0:00:14.9]} 97. Ke2 {[%clk
0:00:31.1]} 97... e4 {[%clk 0:00:15.5]} 98. Kf2 {[%clk 0:00:32]} 98... Ke5
{[%clk 0:00:16.4]} 99. Ke2 {[%clk 0:00:32.6]} 99... f4 {[%clk 0:00:16.6]} 100.
Kf2 {[%clk 0:00:33.5]} 100... Kd4 {[%clk 0:00:17.3]} 101. Ke2 {[%clk 0:00:34.4]}
101... Kc3 {[%clk 0:00:17.8]} 102. Kf2 {[%clk 0:00:35.3]} 102... Kd2 {[%clk
0:00:18.2]} 103. Kf1 {[%clk 0:00:35.7]} 103... e3 {[%clk 0:00:19.1]} 104. Kg2
{[%clk 0:00:36.1]} 104... e2 {[%clk 0:00:19.7]} 105. Kf3 {[%clk 0:00:37]} 105...
e1=Q {[%clk 0:00:20]} 106. Kxf4 {[%clk 0:00:37.9]} 106... Kd3 {[%clk 0:00:20.3]}
107. Kf3 {[%clk 0:00:38.1]} 107... Qf2+ {[%clk 0:00:20.6]} 108. Kg4 {[%clk
0:00:39]} 108... Ke4 {[%clk 0:00:19.1]} 109. Kg5 {[%clk 0:00:39.5]} 109... Ke5
{[%clk 0:00:18.8]} 110. Kg4 {[%clk 0:00:39.9]} 110... Qg2+ {[%clk 0:00:18.9]}
111. Kh5 {[%clk 0:00:39.7]} 111... Qg3 {[%clk 0:00:17.9]} 112. Kh6 {[%clk
0:00:40]} 112... Kf6 {[%clk 0:00:18.3]} 113. Kh7 {[%clk 0:00:40.5]} 113... Qg6+
{[%clk 0:00:18.1]} 114. Kh8 {[%clk 0:00:40.4]} 114... Qg7# {[%clk 0:00:18.2]}
0-1